Workbook

Sheet 1. Info
AC1: =IF('3. Data_Input_Sheet'!M12=0, "", '3. Data_Input_Sheet'!M12) -> 
P11: Version | Q11: 4
F16: Utility Name | G16: Horizon Utilities Corporation
F18: Service Territory | G18: Hamilton & St Catharines
F20: Assigned EB Number | G20: EB-2014-0002 | AA20: Company Name
Z21: 1 | AA21: Algoma Power Inc.
F22: Name and Title | G22: Indy Butany-DeSouza, VP Regulatory Affairs | Z22: 2 | AA22: Atikokan Hydro Inc.
Z23: 3 | AA23: Attawapiskat Power Corporation
F24: Phone Number | G24: 905-317-4765 | Z24: 4 | AA24: Bluewater Power Distribution Corp.
Z25: 5 | AA25: Brant County Power
F26: Email Address | G26: indy.butany@horizonutilities.com | Z26: 6 | AA26: Brantford Power Inc.
Z27: 7 | AA27: Burlington Hydro Inc.
Z28: 8 | AA28: Cambridge and North Dumfries Hydro
Z29: 9 | AA29: Canadian Niagara Power Inc. – Eastern Ontario Power/Fort Erie/Port Colborne
Z30: 10 | AA30: Centre Wellington Hydro Ltd.
Z31: 11 | AA31: Chapleau Public Utilities Corporation
Z32: 12 | AA32: COLLUS Power Corp.
Z33: 13 | AA33: Cooperative Hydro Embrun Inc.
Z34: 14 | AA34: E.L.K. Energy Inc.
Z35: 15 | AA35: Enersource Hydro Mississauga Inc.
Z36: 16 | AA36: Entegrus Powerlines Inc.
Z37: 17 | AA37: ENWIN Utilities Ltd.
Z38: 18 | AA38: Erie Thames Powerlines Corp.
Z39: 19 | AA39: Espanola Regional Hydro Distribution Corporation
Z40: 20 | AA40: Essex Powerlines Corporation
Z41: 21 | AA41: Festival Hydro Inc.
Z42: 22 | AA42: Fort Albany Power Corporation
Z43: 23 | AA43: Fort Frances Power Corporation
Z44: 24 | AA44: Greater Sudbury Hydro Inc.
Z45: 25 | AA45: Grimsby Power Inc.
Z46: 26 | AA46: Guelph Hydro Electric Systems Inc.
Z47: 27 | AA47: Haldimand County Hydro Inc.
Z48: 28 | AA48: Halton Hills Hydro Inc.
Z49: 29 | AA49: Hearst Power Distribution Co. Ltd.
Z50: 30 | AA50: Horizon Utilities Corporation
Z51: 31 | AA51: Hydro 2000 Inc.
Z52: 32 | AA52: Hydro Hawkesbury Inc.
Z53: 33 | AA53: Hydro One Brampton Networks Inc.
Z54: 34 | AA54: Hydro One Networks Inc.
Z55: 35 | AA55: Hydro One Remote Communities Inc.
Z56: 36 | AA56: Hydro Ottawa Limited
Z57: 37 | AA57: Innisfil Hydro Dist. Systems Limited
Z58: 38 | AA58: Kashechewan Power Corporation
Z59: 39 | AA59: Kenora Hydro Electric Corporation Ltd.
Z60: 40 | AA60: Kingston Hydro Corporation
Z61: 41 | AA61: Kitchener-Wilmot Hydro Inc.
Z62: 42 | AA62: Lakefront Utilities Inc.
Z63: 43 | AA63: Lakeland Power Distribution Ltd.
Z64: 44 | AA64: London Hydro Inc.
Z65: 45 | AA65: Midland Power Utility Corporation
Z66: 46 | AA66: Milton Hydro Distribution Inc.
Z67: 47 | AA67: Newmarket – Tay Power Distribution Ltd.
Z68: 48 | AA68: Niagara Peninsula Energy Inc.
Z69: 49 | AA69: Niagara-on-the-Lake Hydro Inc.
Z70: 50 | AA70: Norfolk Power Distribution Ltd.
Z71: 51 | AA71: North Bay Hydro Distribution Limited
Z72: 52 | AA72: Northern Ontario Wires Inc.
Z73: 53 | AA73: Oakville Hydro Distribution Inc.
Z74: 54 | AA74: Orangeville Hydro Limited
Z75: 55 | AA75: Orillia Power Distribution Corp.
Z76: 56 | AA76: Oshawa PUC Networks Inc.
Z77: 57 | AA77: Ottawa River Power Corporation
Z78: 58 | AA78: Parry Sound Power Corporation
Z79: 59 | AA79: Peterborough Distribution Inc.
Z80: 60 | AA80: PowerStream Inc. - Barrie
Z81: 61 | AA81: PowerStream Inc. - South
Z82: 62 | AA82: PUC Distribution Inc.
Z83: 63 | AA83: Renfrew Hydro Inc.
Z84: 64 | AA84: Rideau St. Lawrence Distribution Inc.
Z85: 65 | AA85: St. Thomas Energy Inc.
Z86: 66 | AA86: Sioux Lookout Hydro Inc.
Z87: 67 | AA87: Thunder Bay Hydro Electricity Distribution Inc.
Z88: 68 | AA88: Tillsonburg Hydro Inc.
Z89: 69 | AA89: Toronto Hydro-Electric System Limited
Z90: 70 | AA90: Veridian Connections Inc.
Z91: 71 | AA91: Wasaga Distribution Inc.
Z92: 72 | AA92: Waterloo North Hydro Inc.
Z93: 73 | AA93: Welland Hydro-Electric System Corp.
Z94: 74 | AA94: Wellington North Power Inc.
Z95: 75 | AA95: West Coast Huron Energy Inc.
Z96: 76 | AA96: Westario Power Inc.
Z97: 77 | AA97: Whitby Hydro Electric Corporation
Z98: 78 | AA98: Woodstock Hydro Services Inc.

Sheet 2. Table of Contents
D11: 1. Info | I11: 6. Taxes_PILs
D13: 2. Table of Contents | I13: 7. Cost_of_Capital
D15: 3. Data_Input_Sheet | I15: 8. Rev_Def_Suff
D17: 4. Rate_Base | I17: 9. Rev_Reqt
D19: 5. Utility Income
A24: Notes:
A25: (1) | B25: Pale green cells represent inputs
A26: (2) | B26: Pale green boxes at the bottom of each page are for additional notes
A27: (3) | B27: Pale yellow cells represent drop-down lists
A28: (4) | B28: Please note that this model uses MACROS. Before starting, please ensure that macros have been enabled.
A29: (5) | B29: Completed versions of the Revenue Requirement Work Form are required to be filed in working Microsoft Excel format.

Sheet 3. Data_Input_Sheet
U1: =CONCATENATE('2. Table of Contents'!$F$6," ",'2. Table of Contents'!$G$6) -> 
B9: Data Input (1)
E12: Initial Application | G12: (2) | I12: =IF(ISBLANK(M12),"","Adjustments") ->  | O12: (6) | Q12: =IF(ISBLANK(M12),"","Adjustments") ->  | U12: Per Board Decision
B15: 1 | C15: Rate Base
C16: Gross Fixed Assets (average) | E16: 535997407 | M16: =IF(ISBLANK(E16),0,E16+I16) -> 535997407 | U16: =IF(ISBLANK(E16),"",E16+I16+Q16) -> 535997407
C17: Accumulated Depreciation (average) | E17: -110984931.9 | G17: (5) | M17: =IF(ISBLANK(E17),0,E17+I17) -> -110984931.9 | U17: =IF(ISBLANK(E17),"",E17+I17+Q17) -> -110984931.9
C18: Allowance for Working Capital:
C19: Controllable Expenses | E19: 64394130.71 | M19: =IF(ISBLANK(E19),0,E19+I19) -> 64394130.71 | U19: =IF(ISBLANK(E19),"",E19+I19+Q19) -> 64394130.71
C20: Cost of Power | E20: 541395014.6 | M20: =IF(ISBLANK(E20),0,E20+I20) -> 541395014.6 | U20: =IF(ISBLANK(E20),"",E20+I20+Q20) -> 541395014.6
C21: Working Capital Rate (%) | E21: 0.127 | G21: (9) | M21: =IF(ISBLANK(E21),0,E21) -> 0.127 | O21: (9) | U21: =IF(ISBLANK(M21),IF(ISBLANK(E21),0,E21),M21) -> 0.127 | W21: (9)
B23: 2 | C23: Utility Income
C24: Operating Revenues:
C25: Distribution Revenue at Current Rates | E25: 113328920.1 | I25: =IF(ISBLANK(M25),"",IF(ISBLANK(E25),"",M25-E25)) ->  | Q25: =IF(ISBLANK(U25),"",IF(ISBLANK(M25),"",U25-M25)) -> 
C26: Distribution Revenue at Proposed Rates | E26: 118628500.6 | I26: =IF(ISBLANK(M26),"",IF(ISBLANK(E26),"",M26-E26)) ->  | Q26: =IF(ISBLANK(U26),"",IF(ISBLANK(M26),"",U26-M26)) -> 
C27: Other Revenue:
C28: Specific Service Charges | E28: 735334.68 | I28: =IF(ISBLANK(M28),"",IF(ISBLANK(E28),"",M28-E28)) ->  | Q28: =IF(ISBLANK(U28),"",IF(ISBLANK(M28),"",U28-M28)) -> 
C29: Late Payment Charges | E29: 825000 | I29: =IF(ISBLANK(M29),"",IF(ISBLANK(E29),"",M29-E29)) ->  | Q29: =IF(ISBLANK(U29),"",IF(ISBLANK(M29),"",U29-M29)) -> 
C30: Other Distribution Revenue | I30: =IF(ISBLANK(M30),"",IF(ISBLANK(E30),"",M30-E30)) ->  | Q30: =IF(ISBLANK(U30),"",IF(ISBLANK(M30),"",U30-M30)) -> 
C31: Other Income and Deductions | E31: 3956174.56 | I31: =IF(ISBLANK(M31),"",IF(ISBLANK(E31),"",M31-E31)) ->  | Q31: =IF(ISBLANK(U31),"",IF(ISBLANK(M31),"",U31-M31)) -> 
D33: Total Revenue Offsets | E33: 5516509.24 | G33: (7) | I33: =IF(ISBLANK(M33),"",IF(ISBLANK(E33),"",M33-E33)) ->  | Q33: =IF(ISBLANK(U33),"",IF(ISBLANK(M33),"",U33-M33)) -> 
C35: Operating Expenses:
C36: OM+A Expenses | E36: 64089437.49 | M36: =IF(ISBLANK(E36),"",E36+I36) -> 64089437.49 | U36: =IF(ISBLANK(E36),"",E36+I36+Q36) -> 64089437.49
C37: Depreciation/Amortization | E37: 26487624.06 | M37: =IF(ISBLANK(E37),"",E37+I37) -> 26487624.06 | U37: =IF(ISBLANK(E37),"",E37+I37+Q37) -> 26487624.06
C38: Property taxes | E38: 304693.216 | M38: =IF(ISBLANK(E38),"",E38+I38) -> 304693.216 | U38: =IF(ISBLANK(E38),"",E38+I38+Q38) -> 304693.216
C39: Capital taxes | E39: =IF(ISBLANK(E48),"",E48) ->  | M39: =IF(ISBLANK(M48),"",M48) ->  | U39: =IF(ISBLANK(U48),"",U48) -> 
C40: Other expenses | M40: =IF(ISBLANK(E40),"",E40+I40) ->  | U40: =IF(ISBLANK(E40),"",E40+I40+Q40) -> 
B42: 3 | C42: Taxes/PILs
C43: Taxable Income:
D44: Adjustments required to arrive at taxable income | E44: -6329306.333 | G44: (3)
C45: Utility Income Taxes and Rates:
C46: Income taxes (not grossed up) | E46: 3164564.943
C47: Income taxes (grossed up) | E47: =IF(ISBLANK(E46),"",E46/(1-SUM(E49:E50))) -> 4289143.242 | M47: =IF(ISBLANK(M46),"",M46/(1-SUM(M49:M50))) ->  | U47: =IF(ISBLANK(U46),"",U46/(1-SUM(U49:U50))) -> 
C48: Capital Taxes
C49: Federal tax (%) | E49: 0.15
C50: Provincial tax (%) | E50: 0.1121918261
C51: Income Tax Credits | E51: -103293.1444
B53: 4 | C53: Capitalization/Cost of Capital
C54: Capital Structure:
C55: Long-term debt Capitalization Ratio (%) | E55: 0.56
C56: Short-term debt Capitalization Ratio (%) | E56: 0.04 | G56: (8) | O56: (8) | W56: (8)
C57: Common Equity Capitalization Ratio (%) | E57: 0.4
C58: Prefered Shares Capitalization Ratio (%) | E58: 0
E59: =SUM(E55:E58) -> 1 | M59: =SUM(M55:M58) -> 0 | U59: =SUM(U55:U58) -> 0
E60: =IF(ISBLANK(E57),"",IF(SUM(E55:E58)=100%,"","Capital Structure must total 100%")) ->  | M60: =IF(ISBLANK(M57),"",IF(SUM(M55:M58)=100%,"","Capital Structure must total 100%")) ->  | U60: =IF(ISBLANK(U57),"",IF(SUM(U55:U58)=100%,"","Capital Structure must total 100%")) -> 
C61: Cost of Capital
C62: Long-term debt Cost Rate (%) | E62: 0.03471315789
C63: Short-term debt Cost Rate (%) | E63: 0.0211
C64: Common Equity Cost Rate (%) | E64: 0.0936
C65: Prefered Shares Cost Rate (%) | E65: 0
A68: Notes:
B69: General | C69: Data inputs are required on Sheets 3. Data from Sheet 3 will automatically complete calculations on sheets 4 through 9 (Rate Base through Revenue Requirement). Sheets 4 through 9 do not require any inputs except for notes that the Applicant may wish to enter to support the results. Pale green cells are available on sheets 4 through 9 to enter both footnotes beside key cells and the related text for the notes at the bottom of each sheet.
B70: (1) | C70: All inputs are in dollars ($) except where inputs are individually identified as percentages (%)
B71: (2) | C71: Data in column E is for Application as originally filed. For updated revenue requirement as a result of interrogatory responses, technical or settlement conferences, etc., use colimn M and Adjustments in column I
B72: (3) | C72: Net of addbacks and deductions to arrive at taxable income.
B73: (4) | C73: Average of Gross Fixed Assets at beginning and end of the Test Year
B74: (5) | C74: Average of Accumulated Depreciation at the beginning and end of the Test Year. Enter as a negative amount.
B75: (6) | C75: Select option from drop-down list by clicking on cell M10. This column allows for the application update reflecting the end of discovery or Argument-in-Chief. Also, the outcome of any Settlement Process can be reflected.
B76: (7) | C76: Input total revenue offsets for deriving the base revenue requirement from the service revenue requirement
B77: (8) | C77: 4.0% unless an Applicant has proposed or been approved for another amount.
B78: (9) | C78: Starting with 2013, default Working Capital Allowance factor is 13% (of Cost of Power plus controllable expenses). Alternatively, WCA factor based on lead-lag study or approved WCA factor for another distributor, with supporting rationale.

Sheet 4. Rate_Base
B6: Rate Base and Working Capital
D10: Rate Base
B11: Line No. | D11: Particulars | G11: Initial Application | K11: =IF(ISBLANK('3. Data_Input_Sheet'!M12),"",'3. Data_Input_Sheet'!I12) ->  | O11: =IF(ISBLANK('3. Data_Input_Sheet'!M12)," ",'3. Data_Input_Sheet'!M12) ->  | S11: =IF(ISBLANK('3. Data_Input_Sheet'!Q12),"",'3. Data_Input_Sheet'!Q12) ->  | W11: ='3. Data_Input_Sheet'!U12 -> Per Board Decision
B13: 1 | D13: Gross Fixed Assets (average) | E13: (3) | G13: ='3. Data_Input_Sheet'!E16 -> 535997407 | K13: ='3. Data_Input_Sheet'!I16 -> 0 | O13: =G13+K13 -> 535997407 | S13: ='3. Data_Input_Sheet'!Q16 -> 0 | W13: =G13+K13+S13 -> 535997407
B14: 2 | D14: Accumulated Depreciation (average) | E14: (3) | G14: ='3. Data_Input_Sheet'!E17 -> -110984931.9 | K14: ='3. Data_Input_Sheet'!I17 -> 0 | O14: =G14+K14 -> -110984931.9 | S14: ='3. Data_Input_Sheet'!Q17 -> 0 | W14: =G14+K14+S14 -> -110984931.9
B15: 3 | D15: Net Fixed Assets (average) | E15: (3) | G15: =SUM(G13:G14) -> 425012475.1 | K15: =SUM(K13:K14) -> 0 | O15: =SUM(O13:O14) -> 425012475.1 | S15: =SUM(S13:S14) -> 0 | W15: =SUM(W13:W14) -> 425012475.1
B17: 4 | D17: Allowance for Working Capital | E17: (1) | G17: =G30 -> 76935221.45 | K17: =K30 -> 0 | O17: =O30 -> 76935221.45 | S17: =S30 -> 0 | W17: =W30 -> 76935221.45
D18: Total Rate Base | G18: =G17+G15 -> 501947696.5 | K18: =K17+K15 -> 0 | O18: =O17+O15 -> 501947696.5 | S18: =S17+S15 -> 0 | W18: =W15+W17 -> 501947696.5
B19: 5
C20: (1) | D20: Allowance for Working Capital - Derivation
B24: 6 | D24: Controllable Expenses | G24: ='3. Data_Input_Sheet'!E19 -> 64394130.71 | K24: ='3. Data_Input_Sheet'!I19 -> 0 | O24: =G24+K24 -> 64394130.71 | S24: ='3. Data_Input_Sheet'!Q19 -> 0 | W24: =G24+K24+S24 -> 64394130.71
B25: 7 | D25: Cost of Power | G25: ='3. Data_Input_Sheet'!E20 -> 541395014.6 | K25: ='3. Data_Input_Sheet'!I20 -> 0 | O25: =G25+K25 -> 541395014.6 | S25: ='3. Data_Input_Sheet'!Q20 -> 0 | W25: =G25+K25+S25 -> 541395014.6
B26: 8 | D26: Working Capital Base | G26: =SUM(G24:G25) -> 605789145.3 | K26: =K24+K25 -> 0 | O26: =SUM(O24:O25) -> 605789145.3 | S26: =S24+S25 -> 0 | W26: =SUM(W24:W25) -> 605789145.3
B28: 9 | D28: Working Capital Rate % | E28: (2) | G28: ='3. Data_Input_Sheet'!E21 -> 0.127 | K28: =O28-G28 -> 0 | O28: ='3. Data_Input_Sheet'!M21 -> 0.127 | S28: =W28-O28 -> 0 | W28: ='3. Data_Input_Sheet'!U21 -> 0.127
B30: 10 | D30: Working Capital Allowance | G30: =G26*G28 -> 76935221.45 | K30: =O30-G30 -> 0 | O30: =O26*O28 -> 76935221.45 | S30: =W30-O30 -> 0 | W30: =W26*W28 -> 76935221.45
B33: Notes
B34: (2) | D34: Some Applicants may have a unique rate as a result of a lead-lag study. The default rate for 2014 cost of service applications is 13%.
B35: (3) | D35: Average of opening and closing balances for the year.

Sheet 5. Utility Income
B11: Utility Income
B13: Line No. | D13: Particulars | F13: Initial Application | J13: =IF(N13="","","Adjustments") ->  | N13: =IF(ISBLANK('3. Data_Input_Sheet'!M12),"",'3. Data_Input_Sheet'!M12) ->  | R13: =IF(N13="","","Adjustments") ->  | V13: ='3. Data_Input_Sheet'!U12 -> Per Board Decision
D15: Operating Revenues:
B16: 1 | D16: Distribution Revenue (at Proposed Rates) | F16: ='3. Data_Input_Sheet'!E26 -> 118628500.6 | J16: =N16-F16 -> -118628500.6 | N16: ='3. Data_Input_Sheet'!M26 -> 0 | R16: =V16-N16 -> 0 | V16: =IF(ISBLANK('3. Data_Input_Sheet'!U26),'5. Utility Income'!N16,'3. Data_Input_Sheet'!U26) -> 0
B17: 2 | D17: Other Revenue | E17: (1) | F17: =F48 -> 5516509.24 | J17: =N17-F17 -> -5516509.24 | N17: =N48 -> 0 | R17: =V17-N17 -> 0 | V17: =V48 -> 0
F18: =SUM(F16:F17) -> 124145009.8 | J18: =SUM(J16:J17) -> -124145009.8 | N18: =SUM(N16:N17) -> 0 | R18: =SUM(R16:R17) -> 0 | V18: =SUM(V16:V17) -> 0
B19: 3 | D19: Total Operating Revenues
D21: Operating Expenses:
B22: 4 | D22: OM+A Expenses | F22: ='3. Data_Input_Sheet'!E36 -> 64089437.49 | J22: ='3. Data_Input_Sheet'!I36 -> 0 | N22: ='3. Data_Input_Sheet'!M36 -> 64089437.49 | R22: ='3. Data_Input_Sheet'!Q36 -> 0 | V22: ='3. Data_Input_Sheet'!U36 -> 64089437.49
B23: 5 | D23: Depreciation/Amortization | F23: ='3. Data_Input_Sheet'!E37 -> 26487624.06 | J23: ='3. Data_Input_Sheet'!I37 -> 0 | N23: ='3. Data_Input_Sheet'!M37 -> 26487624.06 | R23: ='3. Data_Input_Sheet'!Q37 -> 0 | V23: ='3. Data_Input_Sheet'!U37 -> 26487624.06
B24: 6 | D24: Property taxes | F24: ='3. Data_Input_Sheet'!E38 -> 304693.216 | J24: ='3. Data_Input_Sheet'!I38 -> 0 | N24: ='3. Data_Input_Sheet'!M38 -> 304693.216 | R24: ='3. Data_Input_Sheet'!Q38 -> 0 | V24: ='3. Data_Input_Sheet'!U38 -> 304693.216
B25: 7 | D25: Capital taxes | F25: ='6. Taxes_PILs'!G25 -> 0 | J25: =N25-F25 -> 0 | N25: ='6. Taxes_PILs'!K25 -> 0 | R25: =V25-N25 -> 0 | V25: ='6. Taxes_PILs'!O25 -> 0
B26: 8 | D26: Other expense | F26: ='3. Data_Input_Sheet'!E40 -> 0 | J26: ='3. Data_Input_Sheet'!I40 -> 0 | N26: ='3. Data_Input_Sheet'!M40 ->  | R26: ='3. Data_Input_Sheet'!Q40 -> 0 | V26: ='3. Data_Input_Sheet'!U40 -> 
F27: =SUM(F22:F26) -> 90881754.76 | J27: =SUM(J22:J26) -> 0 | N27: =SUM(N22:N26) -> 90881754.76 | R27: =SUM(R22:R26) -> 0 | V27: =SUM(V22:V26) -> 90881754.76
B28: 9 | D28: Subtotal (lines 4 to 8)
B30: 10 | D30: Deemed Interest Expense | F30: ='7. Cost_of_Capital'!P19 -> 10181190.06 | J30: =N30-F30 -> -10181190.06 | N30: ='7. Cost_of_Capital'!P35 -> 0 | R30: =V30-N30 -> 0 | V30: ='7. Cost_of_Capital'!P51 -> 0
B32: 11 | D32: Total Expenses (lines 9 to 10) | F32: =F27+F30 -> 101062944.8 | J32: =J30+J27 -> -10181190.06 | N32: =N30+N27 -> 90881754.76 | R32: =R30+R27 -> 0 | V32: =V27+V30 -> 90881754.76
B34: 12 | D34: Utility income before income taxes | F34: =F18-(F32) -> 23082065 | J34: =J18-(J32) -> -113963819.8 | N34: =N18-(N32) -> -90881754.76 | R34: =R18-(R32) -> 0 | V34: =V18-(V32) -> -90881754.76
F35: ='6. Taxes_PILs'!G31 -> 4289143.242 | J35: =N35-F35 -> 0 | N35: ='6. Taxes_PILs'!K31 -> 4289143.242 | R35: =V35-N35 -> 0 | V35: =IF('6. Taxes_PILs'!O31=0,N35,'6. Taxes_PILs'!O31) -> 4289143.242
B36: 13 | D36: Income taxes (grossed-up)
F37: =F34-F35 -> 18792921.76 | J37: =J34-J35 -> -113963819.8 | N37: =N34-N35 -> -95170898.01 | R37: =R34-R35 -> 0 | V37: =V34-V35 -> -95170898.01
B38: 14 | D38: Utility net income
B42: Notes
B44: (1) | D44: Specific Service Charges | F44: ='3. Data_Input_Sheet'!E28 -> 735334.68 | J44: ='3. Data_Input_Sheet'!I28 ->  | N44: ='3. Data_Input_Sheet'!M28 -> 0 | R44: ='3. Data_Input_Sheet'!Q28 ->  | V44: =IF(ISBLANK('3. Data_Input_Sheet'!U28),N44,'3. Data_Input_Sheet'!U28) -> 0
D45: Late Payment Charges | F45: ='3. Data_Input_Sheet'!E29 -> 825000 | J45: ='3. Data_Input_Sheet'!I29 ->  | N45: ='3. Data_Input_Sheet'!M29 -> 0 | R45: ='3. Data_Input_Sheet'!Q29 ->  | V45: =IF(ISBLANK('3. Data_Input_Sheet'!U29),N45,'3. Data_Input_Sheet'!U29) -> 0
D46: Other Distribution Revenue | F46: ='3. Data_Input_Sheet'!E30 -> 0 | J46: ='3. Data_Input_Sheet'!I30 ->  | N46: ='3. Data_Input_Sheet'!M30 -> 0 | R46: ='3. Data_Input_Sheet'!Q30 ->  | V46: =IF(ISBLANK('3. Data_Input_Sheet'!U30),N46,'3. Data_Input_Sheet'!U30) -> 0
D47: Other Income and Deductions | F47: ='3. Data_Input_Sheet'!E31 -> 3956174.56 | J47: ='3. Data_Input_Sheet'!I31 ->  | N47: ='3. Data_Input_Sheet'!M31 -> 0 | R47: ='3. Data_Input_Sheet'!Q31 ->  | V47: =IF(ISBLANK('3. Data_Input_Sheet'!U31),N47,'3. Data_Input_Sheet'!U31) -> 0
F48: =SUM(F44:F47) -> 5516509.24 | J48: =SUM(J44:J47) -> 0 | N48: =SUM(N44:N47) -> 0 | R48: =SUM(R44:R47) -> 0 | V48: =SUM(V44:V47) -> 0
D49: Total Revenue Offsets

Sheet 6. Taxes_PILs
B9: Taxes/PILs
B12: Line No. | D12: Particulars | G12: Application | K12: =IF(ISBLANK('3. Data_Input_Sheet'!M12),"",'3. Data_Input_Sheet'!M12) ->  | O12: ='3. Data_Input_Sheet'!U12 -> Per Board Decision
D14: Determination of Taxable Income
B16: 1 | D16: Utility net income before taxes | G16: ='7. Cost_of_Capital'!P22 -> 18792921.76 | K16: ='7. Cost_of_Capital'!P38 -> 0 | O16: ='7. Cost_of_Capital'!P54 -> 0
B18: 2 | D18: Adjustments required to arrive at taxable utility income | G18: ='3. Data_Input_Sheet'!E44 -> -6329306.333 | K18: ='3. Data_Input_Sheet'!M44 -> 0 | O18: =IF(ISBLANK('3. Data_Input_Sheet'!U44),G18,'3. Data_Input_Sheet'!U44) -> -6329306.333
B20: 3 | D20: Taxable income | G20: =G16+G18 -> 12463615.43 | K20: =K16+K18 -> 0 | O20: =O16+O18 -> -6329306.333
D22: Calculation of Utility income Taxes
B24: 4 | D24: Income taxes | G24: ='3. Data_Input_Sheet'!E46 -> 3164564.943 | K24: =IF(ISBLANK('3. Data_Input_Sheet'!M46),'6. Taxes_PILs'!G24,'3. Data_Input_Sheet'!M46) -> 3164564.943 | O24: =IF(ISBLANK('3. Data_Input_Sheet'!U46),'6. Taxes_PILs'!K24,'3. Data_Input_Sheet'!U46) -> 3164564.943
B25: 5 | D25: Capital taxes | G25: ='3. Data_Input_Sheet'!E48 -> 0 | K25: =IF(ISBLANK('3. Data_Input_Sheet'!M48),'6. Taxes_PILs'!G25,'3. Data_Input_Sheet'!M48) -> 0 | O25: =IF(ISBLANK('3. Data_Input_Sheet'!U48),'6. Taxes_PILs'!K25,'3. Data_Input_Sheet'!U48) -> 0
G26: =SUM(G24:G25) -> 3164564.943 | K26: =SUM(K24:K25) -> 3164564.943 | O26: =SUM(O24:O25) -> 3164564.943
B27: 6 | D27: Total taxes
B29: 7 | D29: Gross-up of Income Taxes | G29: =(G24/(1-G41))-G24 -> 1124578.299 | K29: =(K24/(1-K41))-K24 -> 1124578.299 | O29: =(O24/(1-O41))-O24 -> 1124578.299
B31: 8 | D31: Grossed-up Income Taxes | G31: =G24+G29 -> 4289143.242 | K31: =K24+K29 -> 4289143.242 | O31: =O24+O29 -> 4289143.242
B33: 9 | D33: PILs / tax Allowance (Grossed-up Income taxes + Capital taxes) | G33: =G26+G29 -> 4289143.242 | K33: =K29+K26 -> 4289143.242 | O33: =O29+O26 -> 4289143.242
B35: 10 | D35: Other tax Credits | G35: ='3. Data_Input_Sheet'!E51 -> -103293.1444 | K35: =IF(ISBLANK('3. Data_Input_Sheet'!M51),G35,'3. Data_Input_Sheet'!M51) -> -103293.1444 | O35: =IF(ISBLANK('3. Data_Input_Sheet'!U51),K35,'3. Data_Input_Sheet'!U51) -> -103293.1444
D37: Tax Rates
B39: 11 | D39: Federal tax (%) | G39: ='3. Data_Input_Sheet'!E49 -> 0.15 | K39: =IF(ISBLANK('3. Data_Input_Sheet'!M49),G39,'3. Data_Input_Sheet'!M49) -> 0.15 | O39: =IF(ISBLANK('3. Data_Input_Sheet'!U49),K39,'3. Data_Input_Sheet'!U49) -> 0.15
B40: 12 | D40: Provincial tax (%) | G40: ='3. Data_Input_Sheet'!E50 -> 0.1121918261 | K40: =IF(ISBLANK('3. Data_Input_Sheet'!M50),G40,'3. Data_Input_Sheet'!M50) -> 0.1121918261 | O40: =IF(ISBLANK('3. Data_Input_Sheet'!U50),K40,'3. Data_Input_Sheet'!U50) -> 0.1121918261
B41: 13 | D41: Total tax rate (%) | G41: =G39+G40 -> 0.2621918261 | K41: =K39+K40 -> 0.2621918261 | O41: =O39+O40 -> 0.2621918261
B44: Notes
D45: Capital Taxes not applicable after July 1, 2010 (i.e. for 2011 and later test years)

Sheet 7. Cost_of_Capital
B5: Capitalization/Cost of Capital
B11: Line No. | D11: Particulars | F11: Capitalization Ratio | L11: Cost Rate | P11: Return
F13: Initial Application
F15: (%) | J15: ($) | L15: (%) | P15: ($)
D16: Debt
B17: 1 | D17: Long-term Debt | F17: ='3. Data_Input_Sheet'!E55 -> 0.56 | J17: =$J$26*F17 -> 281090710.1 | L17: ='3. Data_Input_Sheet'!E62 -> 0.03471315789 | P17: =L17*J17 -> 9757546.201
B18: 2 | D18: Short-term Debt | F18: ='3. Data_Input_Sheet'!E56 -> 0.04 | J18: =$J$26*F18 -> 20077907.86 | L18: ='3. Data_Input_Sheet'!E63 -> 0.0211 | P18: =L18*J18 -> 423643.8559
B19: 3 | D19: Total Debt | F19: =SUM(F17:F18) -> 0.6 | J19: =SUM(J17:J18) -> 301168617.9 | L19: =IF(F19=0,0,SUMPRODUCT(F17:F18,L17:L18)/F19) -> 0.03380561404 | P19: =SUM(P17:P18) -> 10181190.06
D21: Equity
B22: 4 | D22: Common Equity | F22: ='3. Data_Input_Sheet'!E57 -> 0.4 | J22: =$J$26*F22 -> 200779078.6 | L22: ='3. Data_Input_Sheet'!E64 -> 0.0936 | P22: =L22*J22 -> 18792921.76
B23: 5 | D23: Preferred Shares | F23: ='3. Data_Input_Sheet'!E58 -> 0 | J23: =$J$26*F23 -> 0 | L23: ='3. Data_Input_Sheet'!E65 -> 0 | P23: =L23*J23 -> 0
B24: 6 | D24: Total Equity | F24: =SUM(F22:F23) -> 0.4 | J24: =SUM(J22:J23) -> 200779078.6 | L24: =IF(F24=0,0,SUMPRODUCT(F22:F23,L22:L23)/F24) -> 0.0936 | P24: =SUM(P22:P23) -> 18792921.76
B26: 7 | D26: Total | F26: =SUM(F19,F24) -> 1 | J26: ='4. Rate_Base'!G18 -> 501947696.5 | L26: =(L19*F19)+(L24*F24) -> 0.05772336842 | P26: =P19+P24 -> 28974111.82
F29: ='1. Info'!AC1 -> 
F31: (%) | J31: ($) | L31: (%) | P31: ($)
D32: Debt
B33: 1 | D33: Long-term Debt | F33: ='3. Data_Input_Sheet'!M55 -> 0 | J33: =$J$42*F33 -> 0 | L33: ='3. Data_Input_Sheet'!M62 -> 0 | P33: =L33*J33 -> 0
B34: 2 | D34: Short-term Debt | F34: ='3. Data_Input_Sheet'!M56 -> 0 | J34: =$J$42*F34 -> 0 | L34: ='3. Data_Input_Sheet'!M63 -> 0 | P34: =L34*J34 -> 0
B35: 3 | D35: Total Debt | F35: =SUM(F33:F34) -> 0 | J35: =SUM(J33:J34) -> 0 | L35: =IF(F35=0,0,SUMPRODUCT(F33:F34,L33:L34)/F35) -> 0 | P35: =SUM(P33:P34) -> 0
D37: Equity
B38: 4 | D38: Common Equity | F38: ='3. Data_Input_Sheet'!M57 -> 0 | J38: =$J$42*F38 -> 0 | L38: ='3. Data_Input_Sheet'!M64 -> 0 | P38: =L38*J38 -> 0
B39: 5 | D39: Preferred Shares | F39: ='3. Data_Input_Sheet'!M58 -> 0 | J39: =$J$42*F39 -> 0 | L39: ='3. Data_Input_Sheet'!M65 -> 0 | P39: =L39*J39 -> 0
B40: 6 | D40: Total Equity | F40: =SUM(F38:F39) -> 0 | J40: =SUM(J38:J39) -> 0 | L40: =IF(F40=0,0,SUMPRODUCT(F38:F39,L38:L39)/F40) -> 0 | P40: =SUM(P38:P39) -> 0
B42: 7 | D42: Total | F42: =F35+F40 -> 0 | J42: ='4. Rate_Base'!O18 -> 501947696.5 | L42: =(L35*F35)+(L40*F40) -> 0 | P42: =P35+P40 -> 0
F45: Per Board Decision
F47: (%) | J47: ($) | L47: (%) | P47: ($)
D48: Debt
B49: 8 | D49: Long-term Debt | F49: =IF(ISBLANK('3. Data_Input_Sheet'!U55),F33,'3. Data_Input_Sheet'!U55) -> 0 | J49: =$J$58*F49 -> 0 | L49: =IF(ISBLANK('3. Data_Input_Sheet'!U62),L17,'3. Data_Input_Sheet'!U62) -> 0.03471315789 | P49: =L49*J49 -> 0
B50: 9 | D50: Short-term Debt | F50: =IF(ISBLANK('3. Data_Input_Sheet'!U56),F34,'3. Data_Input_Sheet'!U56) -> 0 | J50: =$J$58*F50 -> 0 | L50: =IF(ISBLANK('3. Data_Input_Sheet'!U63),L18,'3. Data_Input_Sheet'!U63) -> 0.0211 | P50: =L50*J50 -> 0
B51: 10 | D51: Total Debt | F51: =SUM(F49:F50) -> 0 | J51: =SUM(J49:J50) -> 0 | L51: =IF(F51=0,0,SUMPRODUCT(F49:F50,L49:L50)/F51) -> 0 | P51: =SUM(P49:P50) -> 0
D53: Equity
B54: 11 | D54: Common Equity | F54: =IF(ISBLANK('3. Data_Input_Sheet'!U57),F38,'3. Data_Input_Sheet'!U57) -> 0 | J54: =$J$58*F54 -> 0 | L54: =IF(ISBLANK('3. Data_Input_Sheet'!U64),L22,'3. Data_Input_Sheet'!U64) -> 0.0936 | P54: =L54*J54 -> 0
B55: 12 | D55: Preferred Shares | F55: =IF(ISBLANK('3. Data_Input_Sheet'!U58),F39,'3. Data_Input_Sheet'!U58) -> 0 | J55: =$J$58*F55 -> 0 | L55: =IF(ISBLANK('3. Data_Input_Sheet'!U65),L23,'3. Data_Input_Sheet'!U65) -> 0 | P55: =L55*J55 -> 0
B56: 13 | D56: Total Equity | F56: =SUM(F54:F55) -> 0 | J56: =SUM(J54:J55) -> 0 | L56: =IF(F56=0,0,SUMPRODUCT(F54:F55,L54:L55)/F56) -> 0 | P56: =SUM(P54:P55) -> 0
B58: 14 | D58: Total | F58: =F51+F56 -> 0 | J58: ='4. Rate_Base'!W18 -> 501947696.5 | L58: =(L51*F51)+(L56*F56) -> 0 | P58: =P51+P56 -> 0
B61: Notes
B62: (1) | D62: ='3. Data_Input_Sheet'!C71 -> Data in column E is for Application as originally filed. For updated revenue requirement as a result of interrogatory responses, technical or settlement conferences, etc., use colimn M and Adjustments in column I

Sheet 8. Rev_Def_Suff
P1: =CONCATENATE('2. Table of Contents'!$F$6," ",'2. Table of Contents'!$G$6) -> 
B10: Revenue Deficiency/Sufficiency
F13: Initial Application | J13: =IF(ISBLANK('3. Data_Input_Sheet'!M12),"",'3. Data_Input_Sheet'!M12) ->  | N13: ='3. Data_Input_Sheet'!U12 -> Per Board Decision
B15: Line No. | D15: Particulars | F15: At Current Approved Rates | H15: At Proposed Rates | J15: At Current Approved Rates | L15: At Proposed Rates | N15: At Current Approved Rates | P15: At Proposed Rates
B19: 1 | D19: Revenue Deficiency from Below | H19: =F52 -> 5299580.516 | L19: =J52 -> -24836384.6 | P19: =N52 -> 90881754.76
B20: 2 | D20: Distribution Revenue | F20: ='3. Data_Input_Sheet'!E25 -> 113328920.1 | H20: ='3. Data_Input_Sheet'!E26-H19 -> 113328920.1 | J20: =IF(ISBLANK('3. Data_Input_Sheet'!M25),'3. Data_Input_Sheet'!E25,'3. Data_Input_Sheet'!M25) -> 113328920.1 | L20: =IF(ISBLANK('3. Data_Input_Sheet'!M26),'3. Data_Input_Sheet'!E26-L19,'3. Data_Input_Sheet'!M26-L19) -> 143464885.2 | N20: =IF(ISBLANK('3. Data_Input_Sheet'!U25),'3. Data_Input_Sheet'!M25,'3. Data_Input_Sheet'!U25) -> 0 | P20: =IF(ISBLANK('3. Data_Input_Sheet'!U26),'3. Data_Input_Sheet'!M26-P19,'3. Data_Input_Sheet'!U26-P19) -> -90881754.76
B21: 3 | D21: Other Operating Revenue Offsets - net | F21: ='5. Utility Income'!F48 -> 5516509.24 | H21: ='5. Utility Income'!F48 -> 5516509.24 | J21: ='5. Utility Income'!N48 -> 0 | L21: =J21 -> 0 | N21: ='5. Utility Income'!V48 -> 0 | P21: ='5. Utility Income'!V48 -> 0
B22: 4 | D22: Total Revenue | F22: =SUM(F20:F21) -> 118845429.3 | H22: =SUM(H19:H21) -> 124145009.8 | J22: =SUM(J20:J21) -> 113328920.1 | L22: =SUM(L19:L21) -> 118628500.6 | N22: =SUM(N20:N21) -> 0 | P22: =SUM(P19:P21) -> 0
B24: 5 | D24: Operating Expenses | F24: ='5. Utility Income'!F27 -> 90881754.76 | H24: ='5. Utility Income'!F27 -> 90881754.76 | J24: ='5. Utility Income'!N27 -> 90881754.76 | L24: ='5. Utility Income'!N27 -> 90881754.76 | N24: ='5. Utility Income'!V27 -> 90881754.76 | P24: ='5. Utility Income'!V27 -> 90881754.76
B25: 6 | D25: Deemed Interest Expense | F25: ='5. Utility Income'!F30 -> 10181190.06 | H25: ='5. Utility Income'!F30 -> 10181190.06 | J25: ='5. Utility Income'!N30 -> 0 | L25: ='5. Utility Income'!N30 -> 0 | N25: ='5. Utility Income'!V30 -> 0 | P25: ='5. Utility Income'!V30 -> 0
B26: 8 | D26: Total Cost and Expenses | F26: =SUM(F24:F25) -> 101062944.8 | H26: =SUM(H24:H25) -> 101062944.8 | J26: =SUM(J24:J25) -> 90881754.76 | L26: =SUM(L24:L25) -> 90881754.76 | N26: =SUM(N24:N25) -> 90881754.76 | P26: =SUM(P24:P25) -> 90881754.76
B28: 9 | D28: Utility Income Before Income Taxes | F28: =F22-F26 -> 17782484.48 | H28: =H22-H26 -> 23082065 | J28: =J22-J26 -> 22447165.3 | L28: =L22-L26 -> 27746745.82 | N28: =N22-N26 -> -90881754.76 | P28: =P22-P26 -> -90881754.76
B30: 10 | D30: Tax Adjustments to Accounting Income per 2013 PILs model | F30: ='3. Data_Input_Sheet'!E44 -> -6329306.333 | H30: ='3. Data_Input_Sheet'!E44 -> -6329306.333 | J30: =IF(ISBLANK('3. Data_Input_Sheet'!M44),'3. Data_Input_Sheet'!E44,'3. Data_Input_Sheet'!M44) -> -6329306.333 | L30: =IF(ISBLANK('3. Data_Input_Sheet'!M44),'3. Data_Input_Sheet'!E44,'3. Data_Input_Sheet'!M44) -> -6329306.333 | N30: =IF(ISBLANK('3. Data_Input_Sheet'!U44),'3. Data_Input_Sheet'!M44,'3. Data_Input_Sheet'!U44) -> 0 | P30: =IF(ISBLANK('3. Data_Input_Sheet'!U44),'3. Data_Input_Sheet'!M44,'3. Data_Input_Sheet'!U44) -> 0
B31: 11 | D31: Taxable Income | F31: =SUM(F28:F30) -> 11453178.15 | H31: =SUM(H28:H30) -> 16752758.67 | J31: =SUM(J28+J30) -> 16117858.97 | L31: =L28+L30 -> 21417439.49 | N31: =SUM(N28+N30) -> -90881754.76 | P31: =P28+P30 -> -90881754.76
B33: 12 | D33: Income Tax Rate | F33: ='6. Taxes_PILs'!G41 -> 0.2621918261 | H33: ='6. Taxes_PILs'!G41 -> 0.2621918261 | J33: ='6. Taxes_PILs'!K41 -> 0.2621918261 | L33: ='6. Taxes_PILs'!K41 -> 0.2621918261 | N33: ='6. Taxes_PILs'!O41 -> 0.2621918261 | P33: ='6. Taxes_PILs'!O41 -> 0.2621918261
B34: 13 | D34: Income Tax on Taxable Income | F34: =F31*F33 -> 3002929.694 | H34: =H31*H33 -> 4392436.387 | J34: =J31*J33 -> 4225970.875 | L34: =L31*L33 -> 5615477.568 | N34: =N31*N33 -> -23828453.24 | P34: =P31*P33 -> -23828453.24
B35: 14 | D35: Income Tax Credits | F35: ='3. Data_Input_Sheet'!E51 -> -103293.1444 | H35: ='3. Data_Input_Sheet'!E51 -> -103293.1444 | J35: =IF(ISBLANK('3. Data_Input_Sheet'!M51),'3. Data_Input_Sheet'!E51,'3. Data_Input_Sheet'!M51) -> -103293.1444 | L35: =IF(ISBLANK('3. Data_Input_Sheet'!M51),'3. Data_Input_Sheet'!E51,'3. Data_Input_Sheet'!M51) -> -103293.1444 | N35: =IF(ISBLANK('3. Data_Input_Sheet'!U51),'3. Data_Input_Sheet'!M51,'3. Data_Input_Sheet'!U51) -> 0 | P35: =IF(ISBLANK('3. Data_Input_Sheet'!U51),'3. Data_Input_Sheet'!M51,'3. Data_Input_Sheet'!U51) -> 0
B36: 15 | D36: Utility Net Income | F36: =F28-SUM(F34:F35) -> 14882847.94 | H36: ='5. Utility Income'!F37 -> 18792921.76 | J36: =J28-SUM(J34:J35) -> 18324487.57 | L36: ='5. Utility Income'!N37 -> -95170898.01 | N36: =N28-SUM(N34:N35) -> -67053301.53 | P36: ='5. Utility Income'!V37 -> -95170898.01
B38: 16 | D38: Utility Rate Base | F38: ='4. Rate_Base'!G18 -> 501947696.5 | H38: ='4. Rate_Base'!G18 -> 501947696.5 | J38: ='4. Rate_Base'!O18 -> 501947696.5 | L38: ='4. Rate_Base'!O18 -> 501947696.5 | N38: ='4. Rate_Base'!W18 -> 501947696.5 | P38: ='4. Rate_Base'!W18 -> 501947696.5
B40: 17 | D40: Deemed Equity Portion of Rate Base | F40: ='7. Cost_of_Capital'!J24 -> 200779078.6 | H40: =F40 -> 200779078.6 | J40: ='7. Cost_of_Capital'!J40 -> 0 | L40: =J40 -> 0 | N40: ='7. Cost_of_Capital'!J56 -> 0 | P40: =N40 -> 0
B42: 18 | D42: Income/(Equity Portion of Rate Base) | F42: =IF(F40=0,0,F36/F40) -> 0.07412549175 | H42: =IF(H40=0,0,H36/H40) -> 0.0936 | J42: =IF(J40=0,0,J36/J40) -> 0 | L42: =IF(L40=0,0,L36/L40) -> 0 | N42: =IF(N40=0,0,N36/N40) -> 0 | P42: =IF(P40=0,0,P36/P40) -> 0
B43: 19 | D43: Target Return - Equity on Rate Base | F43: ='7. Cost_of_Capital'!L24 -> 0.0936 | H43: ='7. Cost_of_Capital'!L24 -> 0.0936 | J43: ='7. Cost_of_Capital'!L40 -> 0 | L43: ='7. Cost_of_Capital'!L40 -> 0 | N43: ='7. Cost_of_Capital'!L56 -> 0 | P43: ='7. Cost_of_Capital'!L56 -> 0
B44: 20 | D44: Deficiency/Sufficiency in Return on Equity | F44: =F42-F43 -> -0.01947450825 | H44: =H42-H43 -> 0 | J44: =J42-J43 -> 0 | L44: =L42-L43 -> 0 | N44: =N42-N43 -> 0 | P44: =P42-P43 -> 0
B46: 21 | D46: Indicated Rate of Return | F46: =IF(F38=0,0,(F36+F25)/F38) -> 0.04993356512 | H46: =IF(H38=0,0,(H36+H25)/H38) -> 0.05772336842 | J46: =IF(J38=0,0,(J36+J25)/J38) -> 0.03650676693 | L46: =IF(L40=0,0,(L36+L25)/L38) -> 0 | N46: =IF(N38=0,0,(N36+N25)/N38) -> -0.1335862322 | P46: =IF(P40=0,0,(P36+P25)/P38) -> 0
B47: 22 | D47: Requested Rate of Return on Rate Base | F47: ='7. Cost_of_Capital'!L26 -> 0.05772336842 | H47: ='7. Cost_of_Capital'!L26 -> 0.05772336842 | J47: ='7. Cost_of_Capital'!L42 -> 0 | L47: ='7. Cost_of_Capital'!L42 -> 0 | N47: ='7. Cost_of_Capital'!L58 -> 0 | P47: ='7. Cost_of_Capital'!L58 -> 0
B48: 23 | D48: Deficiency/Sufficiency in Rate of Return | F48: =F46-F47 -> -0.007789803301 | H48: =H46-H47 -> 0 | J48: =J46-J47 -> 0.03650676693 | L48: =L46-L47 -> 0 | N48: =N46-N47 -> -0.1335862322 | P48: =P46-P47 -> 0
B50: 24 | D50: Target Return on Equity | F50: =H50 -> 18792921.76 | H50: ='7. Cost_of_Capital'!P24 -> 18792921.76 | J50: =L50 -> 0 | L50: ='7. Cost_of_Capital'!P40 -> 0 | N50: =P50 -> 0 | P50: ='7. Cost_of_Capital'!P56 -> 0
B51: 25 | D51: Revenue Deficiency/(Sufficiency) | F51: =F50-F36 -> 3910073.823 | H51: =H38*H48 -> 0 | J51: =J50-J36 -> -18324487.57 | L51: =L38*L48 -> 0 | N51: =N50-N36 -> 67053301.53 | P51: =P38*P48 -> 0
B52: 26 | D52: Gross Revenue Deficiency/(Sufficiency) | F52: =F51/(1-F33) -> 5299580.516 | G52: (1) | J52: =J51/(1-J33) -> -24836384.6 | K52: (1) | N52: =N51/(1-N33) -> 90881754.76 | O52: (1)
B55: Notes:
B56: (1) | D56: Revenue Deficiency/Sufficiency divided by (1 - Tax Rate)

Sheet 9. Rev_Reqt
B11: Revenue Requirement
B13: Line No. | D13: Particulars | F13: Application | J13: =IF(ISBLANK('3. Data_Input_Sheet'!M12),"",'3. Data_Input_Sheet'!M12) ->  | N13: ='3. Data_Input_Sheet'!U12 -> Per Board Decision
B15: 1 | D15: OM&A Expenses | F15: ='5. Utility Income'!F22 -> 64089437.49 | J15: ='5. Utility Income'!N22 -> 64089437.49 | N15: ='5. Utility Income'!V22 -> 64089437.49
B16: 2 | D16: Amortization/Depreciation | F16: ='5. Utility Income'!F23 -> 26487624.06 | J16: ='5. Utility Income'!N23 -> 26487624.06 | N16: ='5. Utility Income'!V23 -> 26487624.06
B17: 3 | D17: Property Taxes | F17: ='5. Utility Income'!F24 -> 304693.216 | J17: ='5. Utility Income'!N24 -> 304693.216 | N17: ='5. Utility Income'!V24 -> 304693.216
B18: 4 | D18: Capital Taxes | F18: ='6. Taxes_PILs'!G25 -> 0 | J18: ='6. Taxes_PILs'!K25 -> 0 | N18: ='6. Taxes_PILs'!O25 -> 0
B19: 5 | D19: Income Taxes (Grossed up) | F19: ='6. Taxes_PILs'!G33-F18 -> 4289143.242 | J19: ='6. Taxes_PILs'!K33-J18 -> 4289143.242 | N19: ='6. Taxes_PILs'!O33-N18 -> 4289143.242
B20: 6 | D20: Other Expenses | F20: ='5. Utility Income'!F26 -> 0 | J20: ='5. Utility Income'!N26 ->  | N20: ='5. Utility Income'!V26 -> 
B21: 7 | D21: Return
D22: Deemed Interest Expense | F22: ='8. Rev_Def_Suff'!F25 -> 10181190.06 | J22: ='8. Rev_Def_Suff'!L25 -> 0 | N22: ='8. Rev_Def_Suff'!P25 -> 0
D23: Return on Deemed Equity | F23: ='8. Rev_Def_Suff'!F50 -> 18792921.76 | J23: ='8. Rev_Def_Suff'!L50 -> 0 | N23: ='8. Rev_Def_Suff'!P50 -> 0
B25: 8 | D25: Service Revenue Requirement (before Revenues) | F25: =SUM(F15:F23) -> 124145009.8 | J25: =SUM(J15:J23) -> 95170898.01 | N25: =SUM(N15:O23) -> 95170898.01
B27: 9 | D27: Revenue Offsets | F27: ='3. Data_Input_Sheet'!E33 -> 5516509.24 | J27: ='3. Data_Input_Sheet'!M33 -> 0 | N27: ='3. Data_Input_Sheet'!U33 -> 0
B28: 10 | D28: Base Revenue Requirement | F28: =F25-F27 -> 118628500.6 | J28: =J25-J27 -> 95170898.01 | N28: =N25-N27 -> 95170898.01
D29: (excluding Tranformer Owership Allowance credit adjustment)
B31: 11 | D31: Distribution revenue | F31: ='5. Utility Income'!F16 -> 118628500.6 | J31: ='5. Utility Income'!N16 -> 0 | N31: ='5. Utility Income'!V16 -> 0
B32: 12 | D32: Other revenue | F32: ='5. Utility Income'!F17 -> 5516509.24 | J32: ='5. Utility Income'!N17 -> 0 | N32: ='5. Utility Income'!V17 -> 0
F33: =SUM(F31:F32) -> 124145009.8 | J33: =SUM(J31:J32) -> 0 | N33: =SUM(N31:N32) -> 0
B34: 13 | D34: Total revenue
F35: =F33-F25 -> 0 | J35: =J33-J25 -> -95170898.01 | N35: =N33-N25 -> -95170898.01
B36: 14 | D36: Difference (Total Revenue Less Distribution Revenue Requirement before Revenues) | H36: (1) | L36: (1) | Q36: (1)
B38: Notes
B39: (1) | D39: Line 11 - Line 8
